Body,Body Name,Date,TransNo,Amount £ (Excl VAT),Supplier name,Description,Expense Area,Expense Type,Expense Code
http://opendatacommunities.org/id/london-borough-council/sutton,London Borough of Sutton,29/11/2023,10015042,14,AMZNMKTPLACE,Childrens Centre Services spends,Health and Wellbeing,Miscellaneous Expenses,A49000
http://opendatacommunities.org/id/london-borough-council/sutton,London Borough of Sutton,11/12/2023,10015042,50,ASDA STORES LTD,Childrens Centre Services spends,Health and Wellbeing,Miscellaneous Expenses,A49000
http://opendatacommunities.org/id/london-borough-council/sutton,London Borough of Sutton,02/12/2023,10015042,25.05,TESCO STORES 3235,Childrens Centre Services spends,Health and Wellbeing,Miscellaneous Expenses,A49000
http://opendatacommunities.org/id/london-borough-council/sutton,London Borough of Sutton,01/12/2023,10015042,244.66,COSTCO WHOLESALE #121,Childrens Centre Services spends,Health and Wellbeing,Miscellaneous Expenses,A49000
http://opendatacommunities.org/id/london-borough-council/sutton,London Borough of Sutton,28/11/2023,10015042,77.83,ICELAND,Childrens Centre Services spends,Health and Wellbeing,Miscellaneous Expenses,A49000
http://opendatacommunities.org/id/london-borough-council/sutton,London Borough of Sutton,28/11/2023,10015042,25.89,WALLINGTON BARGAIN BUY,Childrens Centre Services spends,Health and Wellbeing,Miscellaneous Expenses,A49000
http://opendatacommunities.org/id/london-borough-council/sutton,London Borough of Sutton,27/11/2023,10015042,56.29,COSTCO WHOLESALE #121,Childrens Centre Services spends,Health and Wellbeing,Miscellaneous Expenses,A49000
http://opendatacommunities.org/id/london-borough-council/sutton,London Borough of Sutton,29/11/2023,10015042,23.73,TESCO STORES 3235,Childrens Centre Services spends,Health and Wellbeing,Miscellaneous Expenses,A49000
http://opendatacommunities.org/id/london-borough-council/sutton,London Borough of Sutton,03/12/2023,10015042,4.17,POUNDLAND LTD - 1279,TOYS AND EQUIPMENT,Health and Wellbeing,Equipment And Materials Purchase,A40000
http://opendatacommunities.org/id/london-borough-council/sutton,London Borough of Sutton,14/12/2023,10015042,14.97,AMAZON.CO.UK CK8D040A5,HAF PARTY BAG FILLERS,Health and Wellbeing,Equipment And Materials Purchase,A40000
http://opendatacommunities.org/id/london-borough-council/sutton,London Borough of Sutton,05/12/2023,10015042,9.57,AMZNMKTPLACE,HAF PARTY BAGS,Health and Wellbeing,Equipment And Materials Purchase,A40000
http://opendatacommunities.org/id/london-borough-council/sutton,London Borough of Sutton,18/12/2023,10015042,12.32,EBAY O 10-10948-86225,TOYS AND EQUIPMENT,Health and Wellbeing,Equipment And Materials Purchase,A40000
http://opendatacommunities.org/id/london-borough-council/sutton,London Borough of Sutton,04/12/2023,10015042,35.39,WARM-GLASS,GLASS FOR HAF WORKSHOP,Health and Wellbeing,Equipment And Materials Purchase,A40000
http://opendatacommunities.org/id/london-borough-council/sutton,London Borough of Sutton,22/12/2023,10015042,8.32,TWINKL,TWINKL SUPSCRIPTION,Health and Wellbeing,Equipment And Materials Purchase,A40000
http://opendatacommunities.org/id/london-borough-council/sutton,London Borough of Sutton,19/12/2023,10015042,10.21,HOME BARGAINS WIMBLEDO,TOYS AND EQUIPMENT (XMAS),Health and Wellbeing,Equipment And Materials Purchase,A40000
http://opendatacommunities.org/id/london-borough-council/sutton,London Borough of Sutton,18/12/2023,10015042,47.79,LIDL GB LONDON,GROCERIES,Health and Wellbeing,Provisions,A41006
http://opendatacommunities.org/id/london-borough-council/sutton,London Borough of Sutton,05/12/2023,10015042,9.98,LIDL GB LONDON,GROCERIES,Health and Wellbeing,Provisions,A41006
http://opendatacommunities.org/id/london-borough-council/sutton,London Borough of Sutton,15/12/2023,10015042,8.75,CO-OP GROUP 500540,GROCERIES,Health and Wellbeing,Provisions,A41006
http://opendatacommunities.org/id/london-borough-council/sutton,London Borough of Sutton,08/12/2023,10015042,87.5,SAINSBURYS.CO.UK,GROCERIES,Health and Wellbeing,Provisions,A41006
http://opendatacommunities.org/id/london-borough-council/sutton,London Borough of Sutton,29/11/2023,10015042,8.5,ASDA STORES,GROCERIES,Health and Wellbeing,Provisions,A41006
http://opendatacommunities.org/id/london-borough-council/sutton,London Borough of Sutton,27/12/2023,10015042,90.45,TESCO STORES 5999,GROCERIES,Health and Wellbeing,Provisions,A41006
http://opendatacommunities.org/id/london-borough-council/sutton,London Borough of Sutton,04/12/2023,10015042,60.74,TESCO STORES 5999,GROCERIES,Health and Wellbeing,Provisions,A41006
http://opendatacommunities.org/id/london-borough-council/sutton,London Borough of Sutton,22/12/2023,10015042,10.07,TRADETILLROLLS.CO.UK,Central & Branch Libraries,Health and Wellbeing,Miscellaneous Expenses,A49000
http://opendatacommunities.org/id/london-borough-council/sutton,London Borough of Sutton,10/12/2023,10015042,24.99,AMZNBUSINESS 8727W5NZ5,Central & Branch Libraries,Health and Wellbeing,Miscellaneous Expenses,A49000
http://opendatacommunities.org/id/london-borough-council/sutton,London Borough of Sutton,07/12/2023,10015042,12.78,SP CARLIGHTBULB,Central & Branch Libraries,Health and Wellbeing,Miscellaneous Expenses,A49000
http://opendatacommunities.org/id/london-borough-council/sutton,London Borough of Sutton,27/11/2023,10015042,-3.65,TFL TRAVEL,Snr Management Promoting Ind / Int Prov costs,Health and Wellbeing,Miscellaneous Expenses,A49000
http://opendatacommunities.org/id/london-borough-council/sutton,London Borough of Sutton,27/11/2023,10015042,3.65,TFL TRAVEL,Snr Management Promoting Ind / Int Prov costs,Health and Wellbeing,Miscellaneous Expenses,A49000
http://opendatacommunities.org/id/london-borough-council/sutton,London Borough of Sutton,12/12/2023,10015042,-171.4,TRAINLINE,Train ticket,Resources,Miscellaneous Expenses,A49000
http://opendatacommunities.org/id/london-borough-council/sutton,London Borough of Sutton,11/12/2023,10015042,89.87,TRAINLINE,Train ticket,Resources,Miscellaneous Expenses,A49000
http://opendatacommunities.org/id/london-borough-council/sutton,London Borough of Sutton,11/12/2023,10015042,177.19,TRAINLINE,Train ticket,Resources,Miscellaneous Expenses,A49000
http://opendatacommunities.org/id/london-borough-council/sutton,London Borough of Sutton,03/12/2023,10015042,9.16,SPOTIFY P27AB06A75,MUSIC FOR MARRIAGES (NOVEMBER),Health and Wellbeing,Subscriptions,A47010
http://opendatacommunities.org/id/london-borough-council/sutton,London Borough of Sutton,06/12/2023,10015042,7.08,TESCO STORES 3235,TISSUES AND REFRESHMENTS FOR VISITORS,Health and Wellbeing,Miscellaneous Expenses,A49000
http://opendatacommunities.org/id/london-borough-council/sutton,London Borough of Sutton,28/11/2023,10015042,46.5,SAINSBURYS SMKTS,FOOD PLATTER FOR SB SMT AWAY DAY ON 8TH DECEMBER 2023,Resources,Miscellaneous Expenses,A49000
http://opendatacommunities.org/id/london-borough-council/sutton,London Borough of Sutton,28/11/2023,10015042,"1,527.95",WWW.JOHNLEWIS.COM,Childrens & Adults Social Care Support Team,People's Services,Miscellaneous Expenses,A49000
http://opendatacommunities.org/id/london-borough-council/sutton,London Borough of Sutton,30/11/2023,10015042,32.8,AMZNMKTPLACE,Childrens & Adults Social Care Support Team,People's Services,Miscellaneous Expenses,A49000
http://opendatacommunities.org/id/london-borough-council/sutton,London Borough of Sutton,28/11/2023,10015042,15,MNK MOBILE SHOP SUTTON,Childrens & Adults Social Care Support Team,People's Services,Miscellaneous Expenses,A49000
http://opendatacommunities.org/id/london-borough-council/sutton,London Borough of Sutton,08/12/2023,10015042,7.5,POUNDLAND LTD - 1211,ANNUAL CHILDREN CHRISTMAS PRESENTS TOY DRIVE,People's Services,Miscellaneous Expenses,A49000
http://opendatacommunities.org/id/london-borough-council/sutton,London Borough of Sutton,08/12/2023,10015042,22,GREGGS,ANNUAL CHILDREN CHRISTMAS PRESENTS TOY DRIVE,People's Services,Miscellaneous Expenses,A49000
http://opendatacommunities.org/id/london-borough-council/sutton,London Borough of Sutton,08/12/2023,10015042,12.5,MARKS&SPENCER PLC SACA,ANNUAL CHILDREN CHRISTMAS PRESENTS TOY DRIVE,People's Services,Miscellaneous Expenses,A49000
http://opendatacommunities.org/id/london-borough-council/sutton,London Borough of Sutton,08/12/2023,10015042,37.1,POUNDLAND LTD - 1211,ANNUAL CHILDREN CHRISTMAS PRESENTS TOY DRIVE,People's Services,Miscellaneous Expenses,A49000
http://opendatacommunities.org/id/london-borough-council/sutton,London Borough of Sutton,07/12/2023,10015042,50,ONE4ALL,£60.00 E41140 A49000 GIFTCARD.PNG,People's Services,Miscellaneous Expenses,A49000
http://opendatacommunities.org/id/london-borough-council/sutton,London Borough of Sutton,15/12/2023,10015042,-60,ONE4ALL,£60.00 E41140 A49000 GIFTCARD.PNG,People's Services,Miscellaneous Expenses,A49000
http://opendatacommunities.org/id/london-borough-council/sutton,London Borough of Sutton,13/12/2023,10015042,"1,807.00",AO RETAIL LIMITED,APPLIANCES PAYMENT FOR CHILDREN'S HOME,People's Services,Approved Lodgings,A61000
http://opendatacommunities.org/id/london-borough-council/sutton,London Borough of Sutton,04/12/2023,10015042,70,AMAZON.CO.UK 4N1CT34G5,"SPLIT - AMAZON.CO.UK EGIFT CARD-GROOVY THANK YOU ""1""-EMAIL",Resources,Miscellaneous Expenses,A49000
http://opendatacommunities.org/id/london-borough-council/sutton,London Borough of Sutton,13/12/2023,10015042,33.5,THE MYERSBRIGGS COMPAN,,Resources,Miscellaneous Expenses,A49000
http://opendatacommunities.org/id/london-borough-council/sutton,London Borough of Sutton,03/12/2023,10015042,6.47,AMZNMKTPLACE,QR CODE LABELS,Resources,Equipment And Materials Purchase,A40000
http://opendatacommunities.org/id/london-borough-council/sutton,London Borough of Sutton,03/12/2023,10015042,4.99,AMZNMKTPLACE,QR CODE LABELS,Resources,Equipment And Materials Purchase,A40000
http://opendatacommunities.org/id/london-borough-council/sutton,London Borough of Sutton,21/12/2023,10015042,297.96,MAILCHIMP,Corporate Communications,Resources,Miscellaneous Expenses,A49000
http://opendatacommunities.org/id/london-borough-council/sutton,London Borough of Sutton,14/12/2023,10015042,535.55,MAILCHIMP,Corporate Communications,Resources,Miscellaneous Expenses,A49000
http://opendatacommunities.org/id/london-borough-council/sutton,London Borough of Sutton,11/12/2023,10015042,300,AMAZON PRIME MF4LD04S5,AMAZON BUSINESS PRIME YEARLY FEE,Resources,Telephones,A45020
http://opendatacommunities.org/id/london-borough-council/sutton,London Borough of Sutton,17/12/2023,10015042,40,OYSTER BUS AUTOLOAD,CL&G,Resources,"Grants, Contributions & Donations",A47005
http://opendatacommunities.org/id/london-borough-council/sutton,London Borough of Sutton,19/12/2023,10015042,151.99,WWW.CPAG.ORG.UK,PURCHASE OF LEGISLATION BOOK,Resources,Stationery,A43015
http://opendatacommunities.org/id/london-borough-council/sutton,London Borough of Sutton,12/12/2023,10015042,24.99,AMZNMKTPLACE,Data & Systems team spends,Resources,Miscellaneous Expenses,A49000
http://opendatacommunities.org/id/london-borough-council/sutton,London Borough of Sutton,12/12/2023,10015042,25.99,AMZNMKTPLACE,Data & Systems team spends,Resources,Miscellaneous Expenses,A49000
http://opendatacommunities.org/id/london-borough-council/sutton,London Borough of Sutton,30/11/2023,10015042,30,LAND TECHNOLOGIES,Data & Systems team spends,Resources,Miscellaneous Expenses,A49000
http://opendatacommunities.org/id/london-borough-council/sutton,London Borough of Sutton,12/12/2023,10015042,-2.5,AMZNMKTPLACE,Data & Systems team spends,Resources,Miscellaneous Expenses,A49000
http://opendatacommunities.org/id/london-borough-council/sutton,London Borough of Sutton,10/12/2023,10015042,36.65,AMZNMKTPLACE,"ORDERED BATTERIES FOR ALARM PANNELS, MAGNET WORK WELL AREA AND SPRAY FOR CARETAKERS TO CARRY OUT JOBS..",Resources,Purchases and Repairs Fixtures & Fittings,A25005
http://opendatacommunities.org/id/london-borough-council/sutton,London Borough of Sutton,08/12/2023,10015042,150.84,AMZNMKTPLACE,THE FRIDGE WAS FOR THE FIRST AID ROOM AT CIVIC TO STORE MEDICINE AND THE DECOR WAS FOR THE WORKWELL AREA LOCATED ON THE 3RD FLOOR,Resources,Purchases and Repairs Fixtures & Fittings,A25005
http://opendatacommunities.org/id/london-borough-council/sutton,London Borough of Sutton,06/12/2023,10015042,362.33,SPECIALISED CANVAS,FLAGS ORDERED FOR CIVIC AND TRINITY SQ AS THE ONES WE CURRENTLY HAVE ARE IN BAD CONDITIONS AND HAVE RECEIVED COMPLAINTS FROM MEMBERS OF THE PUBLIC!!!,Resources,Equipment And Materials Repairs & Maintenance,A40051
http://opendatacommunities.org/id/london-borough-council/sutton,London Borough of Sutton,06/12/2023,10015042,29.47,AMZNMKTPLACE,ITEMS FOR FIRST AID ROOM,Resources,Equipment And Materials Repairs & Maintenance,A40051
http://opendatacommunities.org/id/london-borough-council/sutton,London Borough of Sutton,28/11/2023,10015042,166.67,IKEA LTD SHOP ONLINE,CUPS  ORDERED TO SUPPORT THE PRESSURE OF ROOM BOOKING,Resources,Equipment And Materials Repairs & Maintenance,A40051
http://opendatacommunities.org/id/london-borough-council/sutton,London Borough of Sutton,04/12/2023,10015042,73.33,AMZNMKTPLACE,LANDYARDS FOR SECURITY CARDS,Resources,Security Services,A44080
http://opendatacommunities.org/id/london-borough-council/sutton,London Borough of Sutton,30/11/2023,10015042,9.89,SCREWFIX DIR. LTD,FM Soft Services CLM,Resources,Miscellaneous Expenses,A49000
http://opendatacommunities.org/id/london-borough-council/sutton,London Borough of Sutton,03/12/2023,10015042,350,ARGOS  SUTTON,$X HEATERS FOR PARKING SERVICES,Environment Housing and Neighbourhoods,Equipment And Materials Purchase,A40000
http://opendatacommunities.org/id/london-borough-council/sutton,London Borough of Sutton,02/12/2023,10015042,20,TFL OYSTER AUTO TOPUP,"OYSTER TOP UP FOR""REDACTED - PERSONAL DATA""",Environment Housing and Neighbourhoods,Non-Staff Travel Subsistence & Training,A46006
http://opendatacommunities.org/id/london-borough-council/sutton,London Borough of Sutton,20/12/2023,10015042,230.79,WWW.ARGOS.CO.UK,EMERGENCY PROVISION FOR HOMELESS HOUSEHOLD,Environment Housing and Neighbourhoods,Bed & Breakfast,A56000
http://opendatacommunities.org/id/london-borough-council/sutton,London Borough of Sutton,11/12/2023,10015042,143.32,TRAVELODGE,EMERGENCY ACCOMMODATION FOR HOMELESS HOUSEHOLD,Environment Housing and Neighbourhoods,Bed & Breakfast,A56000
http://opendatacommunities.org/id/london-borough-council/sutton,London Borough of Sutton,18/12/2023,10015042,159,TVLICENSING.CO.UK,TV LICENSING PAYMENT FOR CLIENT,People's Services,Subscriptions,A47010
http://opendatacommunities.org/id/london-borough-council/sutton,London Borough of Sutton,12/12/2023,10015042,-2.48,AMZNMKTPLACE,BALANCING ENTRY AMOUNT (-15.78%),People's Services,Miscellaneous Expenses,A49000
http://opendatacommunities.org/id/london-borough-council/sutton,London Borough of Sutton,12/12/2023,10015042,11.25,AMZNMKTPLACE,SPLIT - PRIDE GIFT | GIFT FOR PRIDE | PRIDE WISH BRACELET | LOVE IS LOVE BRACELET (100%),People's Services,Miscellaneous Expenses,A49000
http://opendatacommunities.org/id/london-borough-council/sutton,London Borough of Sutton,12/12/2023,10015042,49.62,AMZNMKTPLACE,SPLIT - I WISH YOU ALL THE BEST (105.26%),People's Services,Miscellaneous Expenses,A49000
http://opendatacommunities.org/id/london-borough-council/sutton,London Borough of Sutton,12/12/2023,10015042,22.5,AMZNMKTPLACE,SPLIT - PRIDE GIFT | GIFT FOR PRIDE | PRIDE WISH BRACELET | LOVE IS LOVE BRACELET (100%),People's Services,Miscellaneous Expenses,A49000
http://opendatacommunities.org/id/london-borough-council/sutton,London Borough of Sutton,28/11/2023,10015042,23.5,PICTUREHOUSE,£28.20 A56028 G00440 9999 - CINEMA TICKETS .PDF,People's Services,Client Activities,A56028
http://opendatacommunities.org/id/london-borough-council/sutton,London Borough of Sutton,18/12/2023,10015042,200,POST OFFICE COUNTER,£240 A40000 G03040 9999 - PASSPORT APPLICATION X3.PDF,People's Services,Equipment And Materials Purchase,A40000
http://opendatacommunities.org/id/london-borough-council/sutton,London Borough of Sutton,06/12/2023,10015042,61.62,WWW.ARGOS.CO.UK,£73.95 A49000 G03040 9999 ARGOS .PDF,People's Services,Miscellaneous Expenses,A49000
http://opendatacommunities.org/id/london-borough-council/sutton,London Borough of Sutton,30/11/2023,10015042,38.02,AMZNMKTPLACE,ITEM NEEDED FOR A YOUNG PERSON (100%),People's Services,Miscellaneous Expenses,A49000
http://opendatacommunities.org/id/london-borough-council/sutton,London Borough of Sutton,20/12/2023,10015042,12.5,SAINSBURYS,YP XMAS,People's Services,Miscellaneous Expenses,A49000
http://opendatacommunities.org/id/london-borough-council/sutton,London Borough of Sutton,18/12/2023,10015042,16.67,BOOTS 1541,YP XMAS PRESENTS,People's Services,Miscellaneous Expenses,A49000
http://opendatacommunities.org/id/london-borough-council/sutton,London Borough of Sutton,18/12/2023,10015042,5.5,ZETTLE_ OAKHALL CHURCH,MEET DM MUM,People's Services,Miscellaneous Expenses,A49000
http://opendatacommunities.org/id/london-borough-council/sutton,London Borough of Sutton,29/11/2023,10015042,10,AMZNMKTPLACE,ITEM NEEDED FOR A YOUNG PERSON (100%),People's Services,Miscellaneous Expenses,A49000
http://opendatacommunities.org/id/london-borough-council/sutton,London Borough of Sutton,19/12/2023,10015042,23.58,PRIMARK,YP XMAS PRESENTS,People's Services,Miscellaneous Expenses,A49000
http://opendatacommunities.org/id/london-borough-council/sutton,London Borough of Sutton,19/12/2023,10015042,15.2,LONDON OVERGROUND SST,TRAVEL SUG,People's Services,Miscellaneous Expenses,A49000
http://opendatacommunities.org/id/london-borough-council/sutton,London Borough of Sutton,19/12/2023,10015042,16.67,THE BODY SHOP,YP XMAS PRESENTS,People's Services,Miscellaneous Expenses,A49000
http://opendatacommunities.org/id/london-borough-council/sutton,London Borough of Sutton,18/12/2023,10015042,28.33," BOOTS,CROYDON",YP XMAS PRESENTS,People's Services,Miscellaneous Expenses,A49000
http://opendatacommunities.org/id/london-borough-council/sutton,London Borough of Sutton,18/12/2023,10015042,13.96,POUNDLAND LTD - 1897,XMAS PRESENTS YP,People's Services,Miscellaneous Expenses,A49000
http://opendatacommunities.org/id/london-borough-council/sutton,London Borough of Sutton,15/12/2023,10015042,11.6,THE CONNOISSEUR,XMAS WRAP AND CARDS,People's Services,Miscellaneous Expenses,A49000
http://opendatacommunities.org/id/london-borough-council/sutton,London Borough of Sutton,14/12/2023,10015042,13.33,AMAZON.CO.UK 2458D7LQ5,DM XMAS,People's Services,Miscellaneous Expenses,A49000
http://opendatacommunities.org/id/london-borough-council/sutton,London Borough of Sutton,18/12/2023,10015042,5.62,MCDONALDS,EG ACTIVITY,People's Services,Miscellaneous Expenses,A49000
http://opendatacommunities.org/id/london-borough-council/sutton,London Borough of Sutton,21/12/2023,10015042,26.99,SPAR,SUG FC,People's Services,Miscellaneous Expenses,A49000
http://opendatacommunities.org/id/london-borough-council/sutton,London Borough of Sutton,21/12/2023,10015042,19.98,PPOINT_ MANAT ENTERPRI,YP XMAS,People's Services,Miscellaneous Expenses,A49000
http://opendatacommunities.org/id/london-borough-council/sutton,London Borough of Sutton,28/11/2023,10015042,11.67,LB CROYDON,£14.00 A49000 G03040 9999 - CROYDON BIRTH CERTIFICATE .PDF,People's Services,Miscellaneous Expenses,A49000
http://opendatacommunities.org/id/london-borough-council/sutton,London Borough of Sutton,13/12/2023,10015042,16.09,PPOINT_ D.A.R MINI MAR,DR,People's Services,Miscellaneous Expenses,A49000
http://opendatacommunities.org/id/london-borough-council/sutton,London Borough of Sutton,12/12/2023,10015042,45.83,AMZNMKTPLACE,KW UNI,People's Services,Miscellaneous Expenses,A49000
http://opendatacommunities.org/id/london-borough-council/sutton,London Borough of Sutton,07/12/2023,10015042,25.8,TK MAXX,YP XMAS PRESENTS,People's Services,Miscellaneous Expenses,A49000
http://opendatacommunities.org/id/london-borough-council/sutton,London Borough of Sutton,05/12/2023,10015042,23.75,NANDOS CROYDON COLONNA,MW ACTIVITY,People's Services,Miscellaneous Expenses,A49000
http://opendatacommunities.org/id/london-borough-council/sutton,London Borough of Sutton,12/12/2023,10015042,7,WWW.ARGOS.CO.UK,ARGOS ORDER FOR CLIENT,People's Services,Miscellaneous Expenses,A49000
http://opendatacommunities.org/id/london-borough-council/sutton,London Borough of Sutton,12/12/2023,10015042,7,WWW.ARGOS.CO.UK,ARGOS ORDER FOR CLIENT,People's Services,Miscellaneous Expenses,A49000
http://opendatacommunities.org/id/london-borough-council/sutton,London Borough of Sutton,12/12/2023,10015042,10,WWW.ARGOS.CO.UK,ARGOS GIFT PAYMENT FOR CLIENT,People's Services,Miscellaneous Expenses,A49000
http://opendatacommunities.org/id/london-borough-council/sutton,London Borough of Sutton,30/11/2023,10015042,13,WWW.BETTER.ORG.UK,SOFT PLAY PAYMENT FOR CLIENT,People's Services,Miscellaneous Expenses,A49000
http://opendatacommunities.org/id/london-borough-council/sutton,London Borough of Sutton,29/11/2023,10015042,19.7,AMZNBUSINESS HW9C618L4,BLANKET PAYMENT FOR YOUNG PERSON,People's Services,Miscellaneous Expenses,A49000
http://opendatacommunities.org/id/london-borough-council/sutton,London Borough of Sutton,29/11/2023,10015042,16.42,AMZNBUSINESS HW1OC4BM4,"SPLIT - BRENTFORDS WEIGHTED BLANKET 6KG FOR ADULTS CHILDREN, SINGLE/DOUBLE - SILVER GREY - 125 X 180CM, 6KG(13LB) (100%)",People's Services,Miscellaneous Expenses,A49000
http://opendatacommunities.org/id/london-borough-council/sutton,London Borough of Sutton,13/12/2023,10015042,5.73,MCDONALDS,CL ACTIVITY,People's Services,Miscellaneous Expenses,A49000
http://opendatacommunities.org/id/london-borough-council/sutton,London Borough of Sutton,21/12/2023,10015042,9.35,MCDONALDS,JS ACTIVITY,People's Services,Miscellaneous Expenses,A49000
http://opendatacommunities.org/id/london-borough-council/sutton,London Borough of Sutton,11/12/2023,10015042,193.3,EASYJET,£231.96 A49000 G03050 9999 EASYJET.PDF,People's Services,Miscellaneous Expenses,A49000
http://opendatacommunities.org/id/london-borough-council/sutton,London Borough of Sutton,19/12/2023,10015042,21.33,WWW.WIGHTLINK.CO.UK,FERRY TICKET FOR SOCIAL WORKER,People's Services,C.C.A Travel & Subsistance,A61010
http://opendatacommunities.org/id/london-borough-council/sutton,London Borough of Sutton,11/12/2023,10015042,"3,426.67",OFSTED INTERNET,£4112.00 - A44267 G03070 9999 - OFSTED.PDF,People's Services,Registration & Licence Fees Payable,A44267
http://opendatacommunities.org/id/london-borough-council/sutton,London Borough of Sutton,08/12/2023,10015042,80.44,ASDA GROCERIES ONLINE,ASDA PAYMENT FOR CHILDREN'S HOME,People's Services,Miscellaneous Expenses,A49000
http://opendatacommunities.org/id/london-borough-council/sutton,London Borough of Sutton,11/12/2023,10015042,30,AMZNMKTPLACE,SPLIT - CIF PROFESSIONAL ALL PURPOSE CLEANER LEMON 5L (100%),People's Services,Miscellaneous Expenses,A49000
http://opendatacommunities.org/id/london-borough-council/sutton,London Borough of Sutton,11/12/2023,10015042,250,ZETTLE_ INSOMNIA GROUP,BOOKING FOR CLIENT,People's Services,Miscellaneous Expenses,A49000
http://opendatacommunities.org/id/london-borough-council/sutton,London Borough of Sutton,17/12/2023,10015042,17.99,NETFLIX.COM,NETFLIX PAYMENT FOR CHILDREN'S HOME,People's Services,Miscellaneous Expenses,A49000
http://opendatacommunities.org/id/london-borough-council/sutton,London Borough of Sutton,13/12/2023,10015042,193.38,COSTCO ONLINE UK LIMIT,FOOD DELIVERY PAYMENT FOR CHILDREN'S HOME,People's Services,Miscellaneous Expenses,A49000
http://opendatacommunities.org/id/london-borough-council/sutton,London Borough of Sutton,19/12/2023,10015042,14.99,AMZNMKTPLACE,ITEM FOR A YOUNG PERSON AT WILLOW RISE CHILDRENS HOME (100%),People's Services,Miscellaneous Expenses,A49000
http://opendatacommunities.org/id/london-borough-council/sutton,London Borough of Sutton,12/12/2023,10015042,13,AMZNMKTPLACE,SPLIT - HARPIC ACTIVE FRESH TOILET CLEANER GEL L REMOVES LIMESCALE & STAINS L SCENT: MOUNTAIN PINE L SIZE: PACK OF 12 (100%),People's Services,Miscellaneous Expenses,A49000
http://opendatacommunities.org/id/london-borough-council/sutton,London Borough of Sutton,30/11/2023,10015042,-0.15,ASDA GROCERIES ONLINE,ASDA REFUND FOR CHILDREN'S HOME,People's Services,Miscellaneous Expenses,A49000
http://opendatacommunities.org/id/london-borough-council/sutton,London Borough of Sutton,12/12/2023,10015042,13,AMZNMKTPLACE,SPLIT - HARPIC ACTIVE FRESH TOILET CLEANER GEL L REMOVES LIMESCALE & STAINS L SCENT: MOUNTAIN PINE L SIZE: PACK OF 12 (100%),People's Services,Miscellaneous Expenses,A49000
http://opendatacommunities.org/id/london-borough-council/sutton,London Borough of Sutton,12/12/2023,10015042,20.83,AMZNMKTPLACE,SPLIT - FLASH KITCHEN DEGREASER CLEANING SPRAY 800ML X 10 (100%),People's Services,Miscellaneous Expenses,A49000
http://opendatacommunities.org/id/london-borough-council/sutton,London Borough of Sutton,12/12/2023,10015042,20.75,AMZNMKTPLACE,SPLIT - FLASH BATHROOM CLEANING SPRAY 800ML X 10 (100%),People's Services,Miscellaneous Expenses,A49000
http://opendatacommunities.org/id/london-borough-council/sutton,London Borough of Sutton,05/12/2023,10015042,12.5,AMZNMKTPLACE,"SPLIT - SPONTEX ESSENTIALS SPONGE SCOURER - 6 PACK OF 20, TOTAL 120 SPONGE SCOURERS (100%)",People's Services,Miscellaneous Expenses,A49000
http://opendatacommunities.org/id/london-borough-council/sutton,London Borough of Sutton,05/12/2023,10015042,7.87,AMZNMKTPLACE,SPLIT - PROVENCE COLLECTION COOL GREY SHABBY CHIC HEART SHAPED COASTERS - SET OF 6 IN COASTER HOLDER (100%),People's Services,Miscellaneous Expenses,A49000
http://opendatacommunities.org/id/london-borough-council/sutton,London Borough of Sutton,19/12/2023,10015042,4.99,AMZNMKTPLACE,ITEM NEEDED FOR THE WILLOW RISE CHILDRENS HOME (100%),People's Services,Miscellaneous Expenses,A49000
http://opendatacommunities.org/id/london-borough-council/sutton,London Borough of Sutton,30/11/2023,10015042,76.66,ASDA GROCERIES ONLINE,ASDA PAYMENT FOR CHILDREN'S HOME,People's Services,Miscellaneous Expenses,A49000
http://opendatacommunities.org/id/london-borough-council/sutton,London Borough of Sutton,19/12/2023,10015042,27.18,AMZNMKTPLACE,ITEM NEEDED FOR THE WILLOW RISE CHILDRENS HOME (100%),People's Services,Miscellaneous Expenses,A49000
http://opendatacommunities.org/id/london-borough-council/sutton,London Borough of Sutton,21/12/2023,10015042,18.74,HPI INSTANT INK UK,INK FOR WILLOW RISE CHILDRENS HOME,People's Services,Miscellaneous Expenses,A49000
http://opendatacommunities.org/id/london-borough-council/sutton,London Borough of Sutton,20/12/2023,10015042,268,AMZNMKTPLACE,WILLOW RISE CHILDRENS HOME ITEMS (100%),People's Services,Miscellaneous Expenses,A49000
http://opendatacommunities.org/id/london-borough-council/sutton,London Borough of Sutton,19/12/2023,10015042,28,AMZNMKTPLACE,"PART OF RECEIPT, WILLOW RISE CHILDRENS HOME (100%)",People's Services,Miscellaneous Expenses,A49000
http://opendatacommunities.org/id/london-borough-council/sutton,London Borough of Sutton,05/12/2023,10015042,5.82,AMZNMKTPLACE,SPLIT - ZCOOOOOOL PADLOCK REINFORCED ALLOY STEEL PAD LOCKS WITH FOUR KEYS GARDEN SHED GARAGE LOCK STORAGE WAREHOUSE LOCKER GATE LOCK WATERPROOF HEAVY DUTY PADLOCKS (100%),People's Services,Miscellaneous Expenses,A49000
http://opendatacommunities.org/id/london-borough-council/sutton,London Borough of Sutton,14/12/2023,10015042,89.99,AMZNMKTPLACE,SPLIT - POKÉ BALL PLUS (NINTENDO SWITCH) (100%),People's Services,Client Care/Assistance,A61011
http://opendatacommunities.org/id/london-borough-council/sutton,London Borough of Sutton,20/12/2023,10015042,41.66,AMZNMKTPLACE,SPLIT - DOCTOR WHO SCARF - OFFICIAL BBC DOCTOR WHO SCARF - FOURTH DOCTOR SCARF FULL SIZE BY LOVARZI (100%),People's Services,Client Care/Assistance,A61011
http://opendatacommunities.org/id/london-borough-council/sutton,London Borough of Sutton,15/12/2023,10015042,76.29,ASDA GROCERIES ONLINE,ASDA SHOPPING PAYMENT FOR CHILDREN'S HOME,People's Services,Miscellaneous Expenses,A49000
http://opendatacommunities.org/id/london-borough-council/sutton,London Borough of Sutton,21/12/2023,10015042,109.83,ASDA GROCERIES ONLINE,ASDA SHOPPING PAYMENT FOR CHILDREN'S HOME,People's Services,Miscellaneous Expenses,A49000
http://opendatacommunities.org/id/london-borough-council/sutton,London Borough of Sutton,06/12/2023,10015042,14.16,AMZNMKTPLACE,"SPLIT - FLOOR MOP AND BUCKET SET - 2PC MOPS FOR CLEANING FLOORS WITH BUCKET, PURE YARN MOP HEADS AND HEAVY-DUTY MOP BUCKET, INDUSTRIAL MOP AND BUCKET FOR DOMESTIC AND COMMERCIAL USE (GREEN) (25%)",People's Services,Miscellaneous Expenses,A49000
http://opendatacommunities.org/id/london-borough-council/sutton,London Borough of Sutton,11/12/2023,10015042,59.99,WWW.RYMAN.CO.UK,PRINTER PAYMENT FOR CHILDREN'S HOME,People's Services,Miscellaneous Expenses,A49000
http://opendatacommunities.org/id/london-borough-council/sutton,London Borough of Sutton,06/12/2023,10015042,14.16,AMZNMKTPLACE,"SPLIT - FLOOR MOP AND BUCKET SET - 2PC MOPS FOR CLEANING FLOORS WITH BUCKET, PURE YARN MOP HEADS AND HEAVY-DUTY MOP BUCKET, INDUSTRIAL MOP AND BUCKET FOR DOMESTIC AND COMMERCIAL USE (YELLOW) (25%)",People's Services,Miscellaneous Expenses,A49000
http://opendatacommunities.org/id/london-borough-council/sutton,London Borough of Sutton,06/12/2023,10015042,14.16,AMZNMKTPLACE,"SPLIT - FLOOR MOP AND BUCKET SET - 2PC MOPS FOR CLEANING FLOORS WITH BUCKET, PURE YARN MOP HEADS AND HEAVY-DUTY MOP BUCKET, INDUSTRIAL MOP AND BUCKET FOR DOMESTIC AND COMMERCIAL USE (RED) (25%)",People's Services,Miscellaneous Expenses,A49000
http://opendatacommunities.org/id/london-borough-council/sutton,London Borough of Sutton,06/12/2023,10015042,14.16,AMZNMKTPLACE,"SPLIT - FLOOR MOP AND BUCKET SET - 2PC MOPS FOR CLEANING FLOORS WITH BUCKET, PURE YARN MOP HEADS AND HEAVY-DUTY MOP BUCKET, INDUSTRIAL MOP AND BUCKET FOR DOMESTIC AND COMMERCIAL USE (BLUE) (25%)",People's Services,Miscellaneous Expenses,A49000
http://opendatacommunities.org/id/london-borough-council/sutton,London Borough of Sutton,19/12/2023,10015042,29.99,AMZNMKTPLACE,ITEM NEEDED FOR A YOUNG PERSON (100%),People's Services,Miscellaneous Expenses,A49000
http://opendatacommunities.org/id/london-borough-council/sutton,London Borough of Sutton,19/12/2023,10015042,27.99,AMZNMKTPLACE,ITEM NEEDED FOR A YOUNG PERSON (100%),People's Services,Miscellaneous Expenses,A49000
http://opendatacommunities.org/id/london-borough-council/sutton,London Borough of Sutton,05/12/2023,10015042,9.75,AMZNMKTPLACE,SPLIT - OMNITEX BOX 200 PREMIUM DISPOSABLE BLUE NITRILE GLOVES | POWDER FREE | LATEX FREE | AMBIDEXTROUS | FOOD SAFE | EXAMINATION NON STERILE | CE & UKCA CAT3 GRADE (LARGE) (50%),People's Services,Miscellaneous Expenses,A49000
http://opendatacommunities.org/id/london-borough-council/sutton,London Borough of Sutton,21/12/2023,10015042,-34.3,ASDA GROCERIES ONLINE,ASDA REFUND PAYMENT FOR CHILDREN'S HOME,People's Services,Miscellaneous Expenses,A49000
http://opendatacommunities.org/id/london-borough-council/sutton,London Borough of Sutton,20/12/2023,10015042,38.96,AMZNMKTPLACE,ITEM NEEDED FOR THE WILLOW RISE CHILDRENS HOME (50.07%),People's Services,Miscellaneous Expenses,A49000
http://opendatacommunities.org/id/london-borough-council/sutton,London Borough of Sutton,29/11/2023,10015042,33.32,AMZNMKTPLACE,SPLIT - COOKS PROFESSIONAL 5 PIECE STORAGE CANISTER SET | LABELLED CONTAINERS FOR TEA COFFEE SUGAR BISCUITS & BREAD | CANISTERS SETS FOR KITCHEN ACCESSORIES & ESSENTIALS | BLACK & SILVER (100%),People's Services,Miscellaneous Expenses,A49000
http://opendatacommunities.org/id/london-borough-council/sutton,London Borough of Sutton,29/11/2023,10015042,18.32,AMZNMKTPLACE,"SPLIT - HAWARE MIXING BOWL SET OF 5, STAINLESS STEEL NESTING BOWLS FOR KITCHEN BAKING,SERVING, AIRTIGHT LIDS, HEAVY DUTY & DISHWASHER SAFE, SPACE-SAVING STORAGE METAL BOWL, SIZE 0.7/1.2/1.5/3/4.5QT (BLACK) (100%)",People's Services,Miscellaneous Expenses,A49000
http://opendatacommunities.org/id/london-borough-council/sutton,London Borough of Sutton,20/12/2023,10015042,38.85,AMZNMKTPLACE,ITEM NEEDED FOR THE WILLOW RISE CHILDRENS HOME (49.93%),People's Services,Miscellaneous Expenses,A49000
http://opendatacommunities.org/id/london-borough-council/sutton,London Borough of Sutton,19/12/2023,10015042,35.55,AMZNMKTPLACE,ITEM NEEDED FOR A YOUNG PERSON (100%),People's Services,Miscellaneous Expenses,A49000
http://opendatacommunities.org/id/london-borough-council/sutton,London Borough of Sutton,05/12/2023,10015042,49.57,AMZNMKTPLACE,SPLIT - NON STICK POTS AND PANS SET - INDUCTION HOB POT SET - 8PCS KITCHEN COOKWARE WITH LIDS - COOKING MARBLE SAUCEPAN POTS AND FRYING PANS - BY NUOVVA (100%),People's Services,Miscellaneous Expenses,A49000
http://opendatacommunities.org/id/london-borough-council/sutton,London Borough of Sutton,05/12/2023,10015042,66.62,AMZNMKTPLACE,SPLIT - JBL FLIP 5 PORTABLE WATERPROOF BLUETOOTH SPEAKER BLUE (100%),People's Services,Miscellaneous Expenses,A49000
http://opendatacommunities.org/id/london-borough-council/sutton,London Borough of Sutton,20/12/2023,10015042,124.98,AMZNMKTPLACE,ITEM FOR WILLOW RISE CHILDRENS HOME (100%),People's Services,Miscellaneous Expenses,A49000
http://opendatacommunities.org/id/london-borough-council/sutton,London Borough of Sutton,05/12/2023,10015042,9.75,AMZNMKTPLACE,SPLIT - OMNITEX BOX 200 PREMIUM DISPOSABLE BLUE NITRILE GLOVES | POWDER FREE | LATEX FREE | AMBIDEXTROUS | FOOD SAFE | EXAMINATION NON STERILE | CE & UKCA CAT3 GRADE (MEDIUM) (50%),People's Services,Miscellaneous Expenses,A49000
http://opendatacommunities.org/id/london-borough-council/sutton,London Borough of Sutton,19/12/2023,10015042,64.16,FLANNELS.COM,ITEMS NEEDED FOR WILLOW RISE YOUNG CLIENTS,People's Services,Client Care/Assistance,A61011
http://opendatacommunities.org/id/london-borough-council/sutton,London Borough of Sutton,12/12/2023,10015042,29.16,AMZNMKTPLACE,"SPLIT - ADDIS RECYCLING 40 LITRE SET OF 3 WASTE UTILITY PLASTIC BINS INTERLOCKING CLIPS, LIFT, RED & GREEN, BLACK COLOUR CODED LIDS BLUE, RED, GREEN, 3 X 40 (100%)",People's Services,Miscellaneous Expenses,A49000
http://opendatacommunities.org/id/london-borough-council/sutton,London Borough of Sutton,19/12/2023,10015042,102.45,ZAFETY SUPPLIES LTD,ITEMS NEEDED FOR CLIENT,People's Services,Miscellaneous Expenses,A49000
http://opendatacommunities.org/id/london-borough-council/sutton,London Borough of Sutton,11/12/2023,10015042,2.83,AMZNMKTPLACE,SPLIT - FRIDGE TEMPERATURE RECORD BOOK LOG BOOK A5 (210 X 148MM) FOOD AND FRIDGE TEMPERATURE RECORDER. 32 PAGE. FOOD HYGIENE INFORMATION INSIDE BACK PAGE (100%),People's Services,Miscellaneous Expenses,A49000
http://opendatacommunities.org/id/london-borough-council/sutton,London Borough of Sutton,11/12/2023,10015042,20.82,AMZNMKTPLACE,SPLIT - KITCHEN UTENSILS SET - NON-STICK HEAT RESISTANT COOKING UTENSILS SET - SPOONS TURNERS SPATULA LADLE SET - KITCHEN TOOLS GADGETS ACCESSORIES (25 PCS NYLON SET - BLACK) (100%),People's Services,Miscellaneous Expenses,A49000
http://opendatacommunities.org/id/london-borough-council/sutton,London Borough of Sutton,11/12/2023,10015042,8.99,AMZNMKTPLACE,"SPLIT - AMAZON BASICS 12-PIECE COLOURED KNIFE SET, ASSORTED (55.94%)",People's Services,Miscellaneous Expenses,A49000
http://opendatacommunities.org/id/london-borough-council/sutton,London Borough of Sutton,11/12/2023,10015042,7.08,AMZNMKTPLACE,"SPLIT - TATAY KITCHEN FOOD WASTE COMPOST CADDY BIN WITH HOLDER, 6L CAPACITY, POLYPROPYLENE, MADE FROM 100% RECYCLED MATERIALS, BLACK COLOUR. MEASURES 26,5 X 20,5 X 18,5 CM (1105615) (44.06%)",People's Services,Miscellaneous Expenses,A49000
http://opendatacommunities.org/id/london-borough-council/sutton,London Borough of Sutton,11/12/2023,10015042,210.77,AMZNMKTPLACE,"SPLIT - SHARK UPRIGHT VACUUM CLEANER [NZ801UKT] POWERED LIFT-AWAY WITH ANTI-HAIR WRAP TECHNOLOGY, PET HAIR, NAVY AND ORANGE (100%)",People's Services,Miscellaneous Expenses,A49000
http://opendatacommunities.org/id/london-borough-council/sutton,London Borough of Sutton,20/12/2023,10015042,24.48,AMZNMKTPLACE,AMAZON ORDER FOR CHILDRENS HOME,People's Services,Miscellaneous Expenses,A49000
http://opendatacommunities.org/id/london-borough-council/sutton,London Borough of Sutton,20/12/2023,10015042,8.25,AMZNMKTPLACE,AMAZON ORDER FOR CHILDRENS HOME,People's Services,Miscellaneous Expenses,A49000
http://opendatacommunities.org/id/london-borough-council/sutton,London Borough of Sutton,20/12/2023,10015042,4.16,AMZNMKTPLACE,AMAZON ORDER FOR CHILDRENS HOME,People's Services,Miscellaneous Expenses,A49000
http://opendatacommunities.org/id/london-borough-council/sutton,London Borough of Sutton,20/12/2023,10015042,133.3,AMZNMKTPLACE,AMAZON ORDER FOR CHILDRENS HOME,People's Services,Miscellaneous Expenses,A49000
http://opendatacommunities.org/id/london-borough-council/sutton,London Borough of Sutton,11/12/2023,10015042,7.05,AMZNMKTPLACE,"SPLIT - DOQAUS DIGITAL MEAT THERMOMETER, INSTANT READ FOOD THERMOMETER WITH BACKLIGHT LCD SCREEN, FOLDABLE LONG PROBE & AUTO ON/OFF, MEAT THERMOMETER PROBE FOR KITCHEN, BBQ, WATER, MILK, COOKING FOOD (BLACK) (52.19%)",People's Services,Miscellaneous Expenses,A49000
http://opendatacommunities.org/id/london-borough-council/sutton,London Borough of Sutton,11/12/2023,10015042,6.46,AMZNMKTPLACE,"SPLIT - A & B TRADERS WONDERDRY TEA TOWELS KITCHEN MIX PACK OF 6, COTTON ABSORBENT LONG LASTING CATERING BAR DISH TOWEL (MIX PACK OF 6) (47.81%)",People's Services,Miscellaneous Expenses,A49000
http://opendatacommunities.org/id/london-borough-council/sutton,London Borough of Sutton,11/12/2023,10015042,4.66,AMZNMKTPLACE,SPLIT - WHAM SILVER 5 COMPARTMENT PLASTIC CUTLERY HOLDER TRAY DRAWER ORGANISER RACK (100%),People's Services,Miscellaneous Expenses,A49000
http://opendatacommunities.org/id/london-borough-council/sutton,London Borough of Sutton,19/12/2023,10015042,999.98,WWW.FURNITURECHOICE.CO,FURNITURE AND ITEMS NEEDED FOR CLIENT,People's Services,Miscellaneous Expenses,A49000
http://opendatacommunities.org/id/london-borough-council/sutton,London Borough of Sutton,07/12/2023,10015042,70.79,AMZNMKTPLACE,"SPLIT - SOBUY FSR64-W, HALLWAY SHOE BENCH SHOE RACK SHOE CABINET WITH FLIP-DRAWER AND SEAT CUSHION, WHITE (100%)",People's Services,Miscellaneous Expenses,A49000
http://opendatacommunities.org/id/london-borough-council/sutton,London Borough of Sutton,06/12/2023,10015042,11.65,AMZNMKTPLACE,"SPLIT - YALIXUAN CORNER SHOWER CADDY, BATHROOM SHELF NO DRILL, BATHROOM STORAGE SHOWER BASKET, CORNER SHELF FOR BATHROOM ACCESSORY & KITCHEN ACCESSORIES, 2 PACK, BLACK (100%)",People's Services,Miscellaneous Expenses,A49000
http://opendatacommunities.org/id/london-borough-council/sutton,London Borough of Sutton,11/12/2023,10015042,9.85,AMZNMKTPLACE,SPLIT - WE CAN SOURCE IT LTD - LARGE FOOD ALLERGEN DATE INFO LABELS - REMOVABLE FOOD ALLERGY LABELS FOR COMMERCIAL KITCHENS AND CATERING OUTLETS - PACK OF 500 (100%),People's Services,Miscellaneous Expenses,A49000
http://opendatacommunities.org/id/london-borough-council/sutton,London Borough of Sutton,11/12/2023,10015042,66.66,AMZNMKTPLACE,"SPLIT - TEFAL 5 PIECE, COMFORT MAX, STAINLESS STEEL, POTS AND PANS, INDUCTION SET, SILVER (100%)",People's Services,Miscellaneous Expenses,A49000
http://opendatacommunities.org/id/london-borough-council/sutton,London Borough of Sutton,06/12/2023,10015042,17.07,AMZNMKTPLACE,"SPLIT - RUSSELL HOBBS SUPREME STEAM TRADITIONAL IRON 23060, 2400 W, PURPLE/WHITE (100%)",People's Services,Miscellaneous Expenses,A49000
http://opendatacommunities.org/id/london-borough-council/sutton,London Borough of Sutton,06/12/2023,10015042,4.16,AMZNMKTPLACE,"SPLIT - REVOLUTIONARY SILICONE TOILET BRUSH WITH QUICK DRYING HOLDER, DEEP CLEANER BATHROOM TOILET BRUSH WITH NO SCRATCHES (WHITE) (100%)",People's Services,Miscellaneous Expenses,A49000
http://opendatacommunities.org/id/london-borough-council/sutton,London Borough of Sutton,11/12/2023,10015042,43.32,AMZNMKTPLACE,SPLIT - CUQOO 4-TIER CLOTHES DRYING RACK - STAINLESS STEEL FOLDABLE LAUNDRY RACK | LARGE ADJUSTABLE CLOTHES HANGER FOR INDOOR AND OUTDOOR | SPACE-SAVING PORTABLE INDOOR AIRER | DRYING RACK TOWER DRYER (100%),People's Services,Miscellaneous Expenses,A49000
http://opendatacommunities.org/id/london-borough-council/sutton,London Borough of Sutton,11/12/2023,10015042,81.22,SP VERTELLA LTD,MOP & BUCKET PAYMENT FOR CHILDREN'S HOME,People's Services,Miscellaneous Expenses,A49000
http://opendatacommunities.org/id/london-borough-council/sutton,London Borough of Sutton,06/12/2023,10015042,11.63,AMZNMKTPLACE,"SPLIT - TATAY BATHROOM TRASH BIN WITH PLASTIC PEDAL, 3L CAPACITY, REMVABLE INNER CASE, CUSHIONED DROP CLOSURE, BPA FREE, BLACK. MEASURES 17.5 X 22.5 X 25 CM, GREY (100%)",People's Services,Miscellaneous Expenses,A49000
http://opendatacommunities.org/id/london-borough-council/sutton,London Borough of Sutton,06/12/2023,10015042,-13.98,AMZNMKTPLACE,BALANCING ENTRY AMOUNT (-524.25%),People's Services,Miscellaneous Expenses,A49000
http://opendatacommunities.org/id/london-borough-council/sutton,London Borough of Sutton,06/12/2023,10015042,24.96,AMZNMKTPLACE,SPLIT - TRENDI IRONING BOARD | IRON HOLDER & SILICONE STOPPERS | FULLY ADJUSTABLE HEIGHT | INNOVATIVE DESIGN | SPACE-SAVING SOLUTION-JUMBO IRON REST-IRON HOLDING TRAY (DESIGN MAY VARY) (100%),People's Services,Miscellaneous Expenses,A49000
http://opendatacommunities.org/id/london-borough-council/sutton,London Borough of Sutton,06/12/2023,10015042,18.32,AMZNMKTPLACE,"SPLIT - SMIRY MICROFIBER BATH MAT 40 X 60 CM, NON-SLIP SUPER ABSORBENT BATHROOM MAT, EXTRA SOFT MACHINE WASH AND DRY, NON-SHEDDING BATH MATS FOR BATHROOM, GREY (157.22%)",People's Services,Miscellaneous Expenses,A49000
http://opendatacommunities.org/id/london-borough-council/sutton,London Borough of Sutton,06/12/2023,10015042,-8,AMZNMKTPLACE,BALANCING ENTRY AMOUNT (-57.22%),People's Services,Miscellaneous Expenses,A49000
http://opendatacommunities.org/id/london-borough-council/sutton,London Borough of Sutton,06/12/2023,10015042,18.32,AMZNMKTPLACE,"SPLIT - SMIRY MICROFIBER BATH MAT 40 X 60 CM, NON-SLIP SUPER ABSORBENT BATHROOM MAT, EXTRA SOFT MACHINE WASH AND DRY, NON-SHEDDING BATH MATS FOR BATHROOM, GREY (274.75%)",People's Services,Miscellaneous Expenses,A49000
http://opendatacommunities.org/id/london-borough-council/sutton,London Borough of Sutton,12/12/2023,10015042,4.16,AMZNMKTPLACE,"SPLIT - TEMPERATURE LOG BOOK: TEMPERATURE LOG BOOK WITH INVENTORY TRACKER | RECORD FRIDGE FREEZER OR BAKING TEMPERATURE | PERFECT FOR FOOD VENDORS, RESTAURANTS, CATERERS, BAKERS & MEDICINE BUSINESSES (100%)",People's Services,Miscellaneous Expenses,A49000
http://opendatacommunities.org/id/london-borough-council/sutton,London Borough of Sutton,20/12/2023,10015042,54.99,B&Q MARKETPLACE,DRILL DIY KIT FOR CHILDREN'S HOME,People's Services,Miscellaneous Expenses,A49000
http://opendatacommunities.org/id/london-borough-council/sutton,London Borough of Sutton,11/12/2023,10015042,-0.69,AMZNMKTPLACE,BALANCING ENTRY AMOUNT (-16.11%),People's Services,Approved Lodgings,A61000
http://opendatacommunities.org/id/london-borough-council/sutton,London Borough of Sutton,11/12/2023,10015042,30.07,AMZNMKTPLACE,"SPLIT - SLUMBERDOWN ALL SEASONS 15 TOG SINGLE DUVET - 4.5 TOG COOL SUMMER PLUS 10.5 TOG ALL YEAR ROUND 3 IN 1 COMBINATION QUILT - SOFT TOUCH COVER, HYPOALLERGENIC, MACHINE WASHABLE, SIZE (135CM X 200CM) (53.79%)",People's Services,Approved Lodgings,A61000
http://opendatacommunities.org/id/london-borough-council/sutton,London Borough of Sutton,11/12/2023,10015042,25.83,AMZNMKTPLACE,"SPLIT - SLUMBERDOWN HOTEL QUALITY PILLOWS 2 PACK - BOUNCY FIRM SUPPORT SIDE SLEEPER BED PILLOW FOR NECK, BACK AND SHOULDER PAIN RELIEF - COMFORTABLE, SOFT TOUCH QUILTED COVER, HYPOALLERGENIC (48CM X 74CM) (46.21%)",People's Services,Approved Lodgings,A61000
http://opendatacommunities.org/id/london-borough-council/sutton,London Borough of Sutton,11/12/2023,10015042,725,IKEA LTD SHOP ONLINE,IKEA FURNITURE PAYMENT FOR CHILDREN'S HOME,People's Services,Approved Lodgings,A61000
http://opendatacommunities.org/id/london-borough-council/sutton,London Borough of Sutton,11/12/2023,10015042,29.75,AMZNMKTPLACE,SPLIT - SILENTNIGHT SUPERSOFT COLLECTION DOVE GREY DUVET COVER SET. SUPER SOFT AND SNUGGLY EASY CARE DUVET COVER QUILT BEDDING SET - SINGLE (135CM X 200CM) + 1 MATCHING PILLOWCASE (104.36%),People's Services,Approved Lodgings,A61000
http://opendatacommunities.org/id/london-borough-council/sutton,London Borough of Sutton,11/12/2023,10015042,-1.24,AMZNMKTPLACE,BALANCING ENTRY AMOUNT (-13.08%),People's Services,Approved Lodgings,A61000
http://opendatacommunities.org/id/london-borough-council/sutton,London Borough of Sutton,11/12/2023,10015042,13.29,AMZNMKTPLACE,"SPLIT - EXZACT CUTLERY SET 24PCS STAINLESS STEEL - WITH RIVET CRAFT HANDLES/RETRO STYLE FLATWARE - 6 X DINNER FORKS, 6 X DINNERKNIVES, 6 X TABLE SPOONS, 6 X TEA SPOONS -SERVES 6 (BLACK) (100%)",People's Services,Approved Lodgings,A61000
http://opendatacommunities.org/id/london-borough-council/sutton,London Borough of Sutton,11/12/2023,10015042,474.98,WF  UK4180215654,SOFA DELIVERY FOR CHILDREN'S HOME,People's Services,Approved Lodgings,A61000
http://opendatacommunities.org/id/london-borough-council/sutton,London Borough of Sutton,12/12/2023,10015042,-474.98,WF  UK4180215654,WAYFAIR FURNITURE REFUND FOR CHILDREN'S HOME,People's Services,Approved Lodgings,A61000
http://opendatacommunities.org/id/london-borough-council/sutton,London Borough of Sutton,11/12/2023,10015042,25.96,AMZNMKTPLACE,"SPLIT - DOKEHOM 80L LARGE COLLAPSIBLE WASHING LAUNDRY BASKET BAG WITH 2 SECTIONS FOR BEDROOM, FABRIC (DARK GREY) (100%)",People's Services,Approved Lodgings,A61000
http://opendatacommunities.org/id/london-borough-council/sutton,London Borough of Sutton,12/12/2023,10015042,9.16,AMZNMKTPLACE,SPLIT - URBNLIVING STONEWARE BRIGHTLY COLOURED COFFEE SOUP MUGS 240ML CERAMIC PORCELAIN COLOURFUL TEA CUPS SET 6 PACK (100%),People's Services,Approved Lodgings,A61000
http://opendatacommunities.org/id/london-borough-council/sutton,London Borough of Sutton,12/12/2023,10015042,8.29,AMZNMKTPLACE,"SPLIT - LIVIVO SET OF 6 HI BALL PLASTIC ACRYLIC DRINK TUMBLERS WITH SWIRL DESIGN - STACKABLE GLASSES GREAT FOR PICNICS, BBQ'S, POOLSIDE, CAMPING, CHILDREN'S PARTIES OR JUST EVERYDAY USE (SET OF 6, COLOUR) (100%)",People's Services,Approved Lodgings,A61000
http://opendatacommunities.org/id/london-borough-council/sutton,London Borough of Sutton,11/12/2023,10015042,11.28,AMZNMKTPLACE,SPLIT - LINENS WORLD PERCALE COTTON RICH FITTED SHEETS BREATHABLE ANTI WRINKLE 26CM DEEP 180THREAD SINGLE BED SHEETS SILVER BEDDING & LINEN SINGLE BEDDING 90X190CM SINGLE FITTED SHEET DEEP FITTED SINGLE SHEET (105.37%),People's Services,Approved Lodgings,A61000
http://opendatacommunities.org/id/london-borough-council/sutton,London Borough of Sutton,12/12/2023,10015042,145.82,AMZNMKTPLACE,"SPLIT - AJ GOODMANS KITCHEN SET MICROWAVE, TOASTER & KETTLE BLACK & ROSE GOLD COPPER TEXTURED 3PC (100%)",People's Services,Approved Lodgings,A61000
http://opendatacommunities.org/id/london-borough-council/sutton,London Borough of Sutton,12/12/2023,10015042,10,WWW.ARGOS.CO.UK,ARGOS GIFT PAYMENT FOR CLIENT,People's Services,Miscellaneous Expenses,A49000
http://opendatacommunities.org/id/london-borough-council/sutton,London Borough of Sutton,12/12/2023,10015042,10,WWW.ARGOS.CO.UK,ARGOS GIFT PAYMENT FOR CLIENT,People's Services,Miscellaneous Expenses,A49000
http://opendatacommunities.org/id/london-borough-council/sutton,London Borough of Sutton,12/12/2023,10015042,10,WWW.ARGOS.CO.UK,ARGOS GIFT PAYMENT FOR CLIENT,People's Services,Miscellaneous Expenses,A49000
http://opendatacommunities.org/id/london-borough-council/sutton,London Borough of Sutton,12/12/2023,10015042,9,WWW.ARGOS.CO.UK,ARGOS GIFT PAYMENT FOR CLIENT,People's Services,Miscellaneous Expenses,A49000
http://opendatacommunities.org/id/london-borough-council/sutton,London Borough of Sutton,12/12/2023,10015042,10.5,WWW.ARGOS.CO.UK,ARGOS GIFT PAYMENT FOR CLIENT,People's Services,Miscellaneous Expenses,A49000
http://opendatacommunities.org/id/london-borough-council/sutton,London Borough of Sutton,12/12/2023,10015042,10,WWW.ARGOS.CO.UK,ARGOS GIFT PAYMENT FOR CLIENT,People's Services,Miscellaneous Expenses,A49000
http://opendatacommunities.org/id/london-borough-council/sutton,London Borough of Sutton,12/12/2023,10015042,10,WWW.ARGOS.CO.UK,ARGOS ORDER FOR CLIENT,People's Services,Miscellaneous Expenses,A49000
http://opendatacommunities.org/id/london-borough-council/sutton,London Borough of Sutton,21/12/2023,10015042,-10,WWW.ARGOS.CO.UK,REFUND FOR ARGOS ORDER,People's Services,Miscellaneous Expenses,A49000
http://opendatacommunities.org/id/london-borough-council/sutton,London Borough of Sutton,13/12/2023,10015042,223.94,WWW.ARGOS.CO.UK,TV PAYMENT FOR CHILDREN'S HOME,People's Services,Miscellaneous Expenses,A49000
http://opendatacommunities.org/id/london-borough-council/sutton,London Borough of Sutton,12/12/2023,10015042,10,WWW.ARGOS.CO.UK,ARGOS GIFT PAYMENT FOR CLIENT,People's Services,Miscellaneous Expenses,A49000
http://opendatacommunities.org/id/london-borough-council/sutton,London Borough of Sutton,23/12/2023,10015042,-10,WWW.ARGOS.CO.UK,ARGOS REFUND GIFT FOR CLIENT,People's Services,Miscellaneous Expenses,A49000
http://opendatacommunities.org/id/london-borough-council/sutton,London Borough of Sutton,12/12/2023,10015042,9.99,AMZNMKTPLACE,SPLIT - NAIL POLISH SET - GLITTER NAIL VARNISH SETS - QUICK DRY & LONG LASTING PINK NAIL POLISH - OIL-BASED FORMULA NAIL POLISH GIFT SET - NO NEED CURE NAIL PAINT FOR DIY NAIL ART (100%),People's Services,Approved Lodgings,A61000
http://opendatacommunities.org/id/london-borough-council/sutton,London Borough of Sutton,12/12/2023,10015042,9.99,AMZNMKTPLACE,SPLIT - NAIL POLISH SET - GLITTER NAIL VARNISH SETS - QUICK DRY & LONG LASTING PINK NAIL POLISH - OIL-BASED FORMULA NAIL POLISH GIFT SET - NO NEED CURE NAIL PAINT FOR DIY NAIL ART (100%),People's Services,Approved Lodgings,A61000
http://opendatacommunities.org/id/london-borough-council/sutton,London Borough of Sutton,12/12/2023,10015042,9.99,AMZNMKTPLACE,"SPLIT - OWILL MANICURE SET, 18PCS NAIL CLIPPERS PEDICURE KIT WITH PU LEATHER CASE NAIL CARE KIT PROFESSIONAL TOOLS GIFT FOR WOMEN WIFE GIRLFRIEND PARENTS(ROSE GOLD) (100%)",People's Services,Approved Lodgings,A61000
http://opendatacommunities.org/id/london-borough-council/sutton,London Borough of Sutton,27/11/2023,10015042,30,WWW.ARGOS.CO.UK,ITEMS NEEDED FOR A LEAVING CARE YOUNG PERSON,People's Services,Set Up Costs - Children Leaving Care,A61021
http://opendatacommunities.org/id/london-borough-council/sutton,London Borough of Sutton,27/11/2023,10015042,67.2,WWW.ARGOS.CO.UK,ITEMS NEEDED FOR A LEAVING CARE YOUNG PERSON,People's Services,Set Up Costs - Children Leaving Care,A61021
http://opendatacommunities.org/id/london-borough-council/sutton,London Borough of Sutton,07/12/2023,10015042,29.73,TRAVELODGE,£35.68 A46010 G03120 9999 - TRAVELODGE CARLISLE.PDF,People's Services,Hotel Accomodation,A46010
http://opendatacommunities.org/id/london-borough-council/sutton,London Borough of Sutton,21/12/2023,10015042,212.13,TRAVELODGE,HOTEL PAYMENT FOR CLIENT,People's Services,Hotel Accomodation,A46010
http://opendatacommunities.org/id/london-borough-council/sutton,London Borough of Sutton,21/12/2023,10015042,93.81,TRAVELODGE,HOTEL PAYMENT FOR CLIENT,People's Services,Hotel Accomodation,A46010
http://opendatacommunities.org/id/london-borough-council/sutton,London Borough of Sutton,14/12/2023,10015042,41.63,TRAVELODGE,£49.96 A46010 G03120 9999 - TRAVELODGE CARLISLE.PDF,People's Services,Hotel Accomodation,A46010
http://opendatacommunities.org/id/london-borough-council/sutton,London Borough of Sutton,12/12/2023,10015042,109.62,TRAVELODGE,£131.55 A46010 G03120 9999 - TRAVELODGE CARLISLE.PDF,People's Services,Hotel Accomodation,A46010
http://opendatacommunities.org/id/london-borough-council/sutton,London Borough of Sutton,12/12/2023,10015042,30.58,TRAVELODGE,£36.70 A46010 G03120 9999 - TRAVELODGE CARLISLE.PDF.PDF,People's Services,Hotel Accomodation,A46010
http://opendatacommunities.org/id/london-borough-council/sutton,London Borough of Sutton,22/12/2023,10015042,20,AMAZON.CO.UK UP73R9G15,AMAZON GIFT VOUCHER (100%),People's Services,Miscellaneous Expenses,A49000
http://opendatacommunities.org/id/london-borough-council/sutton,London Borough of Sutton,04/12/2023,10015042,25,LB CROYDON,"BIRTH CERTIFICATE PAYMENT, REQUEST FROM SOCIAL WORKER",People's Services,Miscellaneous Expenses,A49000
http://opendatacommunities.org/id/london-borough-council/sutton,London Borough of Sutton,14/12/2023,10015042,45.9,HOLLYWOOD BOWL,BOWLING ACTIVITY PAYMENT FOR CLIENT,People's Services,Client Care/Assistance,A61011
http://opendatacommunities.org/id/london-borough-council/sutton,London Borough of Sutton,29/11/2023,10015042,15.75,ABBA CARS,£18.90 A61010 G03150 9999 HERITAGE CARS.PDF,People's Services,C.C.A Travel & Subsistance,A61010
http://opendatacommunities.org/id/london-borough-council/sutton,London Borough of Sutton,18/12/2023,10015042,"1,012.17",TRAVELODGE,£1214.60 A46010 G03180 9999 - TRAVELODGE LEATHERHEAD.PDF,People's Services,Hotel Accomodation,A46010
http://opendatacommunities.org/id/london-borough-council/sutton,London Borough of Sutton,04/12/2023,10015042,566.67,PREMIER INN,£680 A46010 G03180 9999 - PREMIER INN LONDON ROMFORD.PDF,People's Services,Hotel Accomodation,A46010
http://opendatacommunities.org/id/london-borough-council/sutton,London Borough of Sutton,04/12/2023,10015042,486.13,TRAVELODGE,£583.36 A46010 G03180 9999 LEATHERHEAD TRAVELODGE.PDF,People's Services,Hotel Accomodation,A46010
http://opendatacommunities.org/id/london-borough-council/sutton,London Borough of Sutton,06/12/2023,10015042,438.55,TRAVELODGE,£526.26 A46010 G03180 9999 - EPSOM TRAVELODGE CENTRAL.PDF,People's Services,Hotel Accomodation,A46010
http://opendatacommunities.org/id/london-borough-council/sutton,London Borough of Sutton,28/11/2023,10015042,445.33,TRAVELODGE,£534.40 A46010 G03180 9999 TRAVELODGE EPSOM.PDF,People's Services,Hotel Accomodation,A46010
http://opendatacommunities.org/id/london-borough-council/sutton,London Borough of Sutton,27/11/2023,10015042,542.08,PREMIER INN,HOTEL STAY FOR CLIENT,People's Services,Hotel Accomodation,A46010
http://opendatacommunities.org/id/london-borough-council/sutton,London Borough of Sutton,12/12/2023,10015042,187,PREMIER INN,HOTEL ACCOMMODATION FOR CLIENT,People's Services,Hotel Accomodation,A46010
http://opendatacommunities.org/id/london-borough-council/sutton,London Borough of Sutton,11/12/2023,10015042,411.33,TRAVELODGE,ACCOMODATION REQUIRED FOR A CLIENT,People's Services,Hotel Accomodation,A46010
http://opendatacommunities.org/id/london-borough-council/sutton,London Borough of Sutton,27/11/2023,10015042,595.78,TRAVELODGE,HOTEL STAY FOR CLIENT,People's Services,Client Care/Assistance,A61011
http://opendatacommunities.org/id/london-borough-council/sutton,London Borough of Sutton,05/12/2023,10015042,"-1,170.00",DUKES HEAD WALLINGTON,,People's Services,Client Care/Assistance,A61011
http://opendatacommunities.org/id/london-borough-council/sutton,London Borough of Sutton,19/12/2023,10015042,35,MARKS&SPENCER PLC,FLOWERS FOR FOSTER CARER,People's Services,Equipment And Materials Purchase,A40000
http://opendatacommunities.org/id/london-borough-council/sutton,London Borough of Sutton,01/12/2023,10015042,16.89,LIDL UK,RECRUITMENT EVENT RESOURCES,People's Services,Catering,A41000
http://opendatacommunities.org/id/london-borough-council/sutton,London Borough of Sutton,05/12/2023,10015042,7,MARKS&SPENCER PLC SACA,CHILDREN OF FOSTER CARERS APPRECIATION CARDS,People's Services,Stationery,A43015
http://opendatacommunities.org/id/london-borough-council/sutton,London Borough of Sutton,09/12/2023,10015042,140,W M MORRISON STORE,Fostering Team spends,People's Services,Miscellaneous Expenses,A49000
http://opendatacommunities.org/id/london-borough-council/sutton,London Borough of Sutton,09/12/2023,10015042,180,W M MORRISON STORE,Fostering Team spends,People's Services,Miscellaneous Expenses,A49000
http://opendatacommunities.org/id/london-borough-council/sutton,London Borough of Sutton,28/11/2023,10015042,733.33,PAYPAL  FF CIC,£880.00 A15022 G03210 9999 - TRAINING COURSE PYSCHOTHERAPY .PDF,People's Services,Staff Development And Training,A15022
http://opendatacommunities.org/id/london-borough-council/sutton,London Borough of Sutton,28/11/2023,10015042,35,MARKS&SPENCER PLC,FLOWERS FOR CLIENT,People's Services,Equipment And Materials Purchase,A40000
http://opendatacommunities.org/id/london-borough-council/sutton,London Borough of Sutton,06/12/2023,10015042,22.49,AMZNMKTPLACE,SPLIT - STRAIGHT EDGE DIM-OUT ROLLER BLIND - EASY FIT HOME OFFICE - 180CM WIDTH X 160CM WIDTH DROP - DARK GREY (100%),People's Services,Miscellaneous Expenses,A49000
http://opendatacommunities.org/id/london-borough-council/sutton,London Borough of Sutton,14/12/2023,10015042,45,MARKS&SPENCER PLC,"M&S FLOWERS ORDERED ON BEHALF OF LSCP - FOR ""REDACTED - PERSONAL DATA""",People's Services,Staff Development And Training,A15022
http://opendatacommunities.org/id/london-borough-council/sutton,London Borough of Sutton,15/12/2023,10015042,30.83,WWW.BLOOMANDWILD.COM,FLOWERS,People's Services,Miscellaneous Expenses,A49000
http://opendatacommunities.org/id/london-borough-council/sutton,London Borough of Sutton,05/12/2023,10015042,380,SAFETYPUB,MOVING AND HANDLING BOOKLETS X 200 SAFETY PUBLISHING - LTD DAVID OLLEY - INFO@SAFETYPUBLISHING.CO.UK,People's Services,Staff Development And Training,A15022
http://opendatacommunities.org/id/london-borough-council/sutton,London Borough of Sutton,07/12/2023,10015042,34.8,STK SHUTTERSTOCK,SHUTTERSTOCK FOR CLIENT,People's Services,Other Supplies & Services,A44291
http://opendatacommunities.org/id/london-borough-council/sutton,London Borough of Sutton,04/12/2023,10015042,431.04,GOVERNMENT EVENTS,"""REDACTED - PERSONAL DATA""WORKING IN PARTNERSHIP TO SAFEGUARD CHILDREN CONFERENCE 28TH FEBRUARY 2024",People's Services,Staff Development And Training,A15022
http://opendatacommunities.org/id/london-borough-council/sutton,London Borough of Sutton,18/12/2023,10015042,641.62,WWW.ARGOS.CO.UK,£769.95 A49000 G03709 9999 ARGOS .PDF,People's Services,Miscellaneous Expenses,A49000
http://opendatacommunities.org/id/london-borough-council/sutton,London Borough of Sutton,22/12/2023,10015042,75,SP CHILD AND FAMILY TR,TRAINING RESOURCES FOR CAMHS,People's Services,Learning Resources (Class Materials),A43016
http://opendatacommunities.org/id/london-borough-council/sutton,London Borough of Sutton,04/12/2023,10015042,570,BKG HOTEL AT BOOKING.C,HOTEL STAY FOR CLIENT,People's Services,Hotel Accomodation,A46010
http://opendatacommunities.org/id/london-borough-council/sutton,London Borough of Sutton,14/12/2023,10015042,903.37,TRAVELODGE,£1084.04 A46010 G03840 9999 - TRAVELODGE LEATHERHEAD .PDF,People's Services,Hotel Accomodation,A46010
http://opendatacommunities.org/id/london-borough-council/sutton,London Borough of Sutton,11/12/2023,10015042,383.27,EASYHOTEL W1222291,ACCOMODATION REQUIRED FOR A CLIENT,People's Services,Hotel Accomodation,A46010
http://opendatacommunities.org/id/london-borough-council/sutton,London Borough of Sutton,18/12/2023,10015042,40,WALLINGTONSTATIONCARS,TAXI BOOKING FOR CLIENT,People's Services,C.C.A Travel & Subsistance,A61010
http://opendatacommunities.org/id/london-borough-council/sutton,London Borough of Sutton,01/12/2023,10015042,307.49,HOLIDAY INNS,HOTEL PAYMENT FOR CLIENT,People's Services,Client Care/Assistance,A61011
http://opendatacommunities.org/id/london-borough-council/sutton,London Borough of Sutton,07/12/2023,10015042,84.98,SMYTHS TOYS,ITEMS REQUESTED FOR A YOUNG PERSON,People's Services,Client Care/Assistance,A61011
http://opendatacommunities.org/id/london-borough-council/sutton,London Borough of Sutton,01/12/2023,10015042,82.5,HOLIDAY INNS,£99 A61011 G03840 9999 - HOLIDAY INN BOOKING .PDF,People's Services,Client Care/Assistance,A61011
http://opendatacommunities.org/id/london-borough-council/sutton,London Borough of Sutton,04/12/2023,10015042,8.42,CLOCKTOWER CARS,TAXI PAYMENT FOR CLIENT,People's Services,Client Care/Assistance,A61011
http://opendatacommunities.org/id/london-borough-council/sutton,London Borough of Sutton,21/12/2023,10015042,-54,IKEA LTD SHOP ONLINE,ITEMS REQUIRED FOR A CLIENT,People's Services,Miscellaneous Expenses,A49000
http://opendatacommunities.org/id/london-borough-council/sutton,London Borough of Sutton,08/12/2023,10015042,45,IKEA LTD SHOP ONLINE,£54.00 - A49000 J62928 9999 - IKEA .PNG,People's Services,Miscellaneous Expenses,A49000
http://opendatacommunities.org/id/london-borough-council/sutton,London Borough of Sutton,08/12/2023,10015042,295,CURRYS ONLINE,£354.00 - A49000 J62928 9999 - CURRYS .PNG,People's Services,Miscellaneous Expenses,A49000
http://opendatacommunities.org/id/london-borough-council/sutton,London Borough of Sutton,05/12/2023,10015042,15.95,WWW.ARGOS.CO.UK,DOORBELL FOR ADULT,People's Services,Miscellaneous Expenses,A49000
http://opendatacommunities.org/id/london-borough-council/sutton,London Borough of Sutton,07/12/2023,10015042,170.75,MOL BIG BERTHA ORIG...,SOFA FOR CLIENT,People's Services,Set Up Costs - Children Leaving Care,A61021
http://opendatacommunities.org/id/london-borough-council/sutton,London Borough of Sutton,06/12/2023,10015042,258.95,FDS CORPORATION LIMITE,FURNITURE PAYMENT FOR CLIENT,People's Services,Set Up Costs - Children Leaving Care,A61021
http://opendatacommunities.org/id/london-borough-council/sutton,London Borough of Sutton,06/12/2023,10015042,337.49,WF  UK4178728374,WAYFAIR ORDER FOR CLIENT,People's Services,Set Up Costs - Children Leaving Care,A61021
http://opendatacommunities.org/id/london-borough-council/sutton,London Borough of Sutton,06/12/2023,10015042,33.33,WWW.ARGOS.CO.UK,£40 A61011 J64080 9999 - ARGOS ORDER - HEATER .PDF,People's Services,Client Care/Assistance,A61011
http://opendatacommunities.org/id/london-borough-council/sutton,London Borough of Sutton,04/12/2023,10015042,975,DUKES HEAD WALLINGTON,,People's Services,Client Care/Assistance,A61011
http://opendatacommunities.org/id/london-borough-council/sutton,London Borough of Sutton,04/12/2023,10015042,108.33,DUKES HEAD WALLINGTON,£130 A61011 J64100 9999 - DUKES HEAD HOTEL.PDF,People's Services,Client Care/Assistance,A61011
http://opendatacommunities.org/id/london-borough-council/sutton,London Borough of Sutton,28/11/2023,10015042,35,RM SUBSCRIPTION,START TEAM EXPENSE,People's Services,Miscellaneous Expenses,A49000
http://opendatacommunities.org/id/london-borough-council/sutton,London Borough of Sutton,29/11/2023,10015042,50,ALLIUM,FUNERAL WREATH MCILVENNY,Resources,Funeral Expenses,A44220
http://opendatacommunities.org/id/london-borough-council/sutton,London Borough of Sutton,29/11/2023,10015042,5,B & Q 1191,GLOVES FOR POP PPE,Resources,Funeral Expenses,A44220
http://opendatacommunities.org/id/london-borough-council/sutton,London Borough of Sutton,06/12/2023,10015042,52.2,AMZNMKTPLACE,"SPLIT - YOSH WATERPROOF PHONE POUCH, 2-PACK IPX8 UNDERWATER WATERPROOF PHONE CASE FOR SWIMMING, DRY BAG MOBILE PHONE LANYARD CASES FOR IPHONE 15 14 13 12 11 PRO XS, SAMSUNG S23 S22, HUAWEI P30 P20 UP TO 6.8"" (16.08%)",Environment Housing and Neighbourhoods,Other Capital Expenditure,C20002
http://opendatacommunities.org/id/london-borough-council/sutton,London Borough of Sutton,06/12/2023,10015042,174.02,AMZNMKTPLACE,SPLIT - CHARMAST 10400MAH POWER BANK USB C BATTERY PACK WITH LED DISPLAY TYPE C POWERBANK PORTABLE CHARGER COMPATIBLE WITH SMARTPHONES TABLETS AND MORE (BLUE) (100%),Environment Housing and Neighbourhoods,Other Capital Expenditure,C20002
http://opendatacommunities.org/id/london-borough-council/sutton,London Borough of Sutton,06/12/2023,10015042,64.79,AMZNMKTPLACE,"SPLIT - MULTI CHARGER CABLE, MULTI CHARGING CABLE 3 IN 1 FAST MULTI USB CHARGER CABLE MULTIPLE CABLE NYLON WITH MICRO USB TYPE C, IP 14 13 12 11 ANDROID GALAXY S22 S21 S20, HUAWEI, ONEPLUS, KINDLE, LG (16.63%)",Environment Housing and Neighbourhoods,Other Capital Expenditure,C20002
http://opendatacommunities.org/id/london-borough-council/sutton,London Borough of Sutton,06/12/2023,10015042,172.37,AMZNMKTPLACE,"SPLIT - COMFYDEGREE ULTRALIGHT FOLDABLE HIKING BACKPACK | 30L PACKABLE, WATERPROOF, LIGHTWEIGHT, TRAVEL RUCKSACK | MEN & WOMEN LARGE BAG FOR WORK, OUTDOOR CAMPING, WALKING, CYCLING, SPORT DAYPACK (PURPLE) (110.96%)",Environment Housing and Neighbourhoods,Other Capital Expenditure,C20002
http://opendatacommunities.org/id/london-borough-council/sutton,London Borough of Sutton,06/12/2023,10015042,-17.02,AMZNMKTPLACE,BALANCING ENTRY AMOUNT (-32.88%),Environment Housing and Neighbourhoods,Other Capital Expenditure,C20002
http://opendatacommunities.org/id/london-borough-council/sutton,London Borough of Sutton,06/12/2023,10015042,57.1,AMZNMKTPLACE,"SPLIT - HEAD TORCH RECHARGEABLE, BLUKAR 2000L SUPER BRIGHT LED HEADLAMP HEADLIGHT WITH SENSOR CONTROL, 6 LIGHT MODES, IPX5 WATERPROOF, 30 HRS RUNTIME FOR POWER CUTS, EMERGENCY, RUNNING, HIKING ETC. (100%)",Environment Housing and Neighbourhoods,Other Capital Expenditure,C20002
http://opendatacommunities.org/id/london-borough-council/sutton,London Borough of Sutton,06/12/2023,10015042,57.1,AMZNMKTPLACE,"SPLIT - HEAD TORCH RECHARGEABLE, BLUKAR 2000L SUPER BRIGHT LED HEADLAMP HEADLIGHT WITH SENSOR CONTROL, 6 LIGHT MODES, IPX5 WATERPROOF, 30 HRS RUNTIME FOR POWER CUTS, EMERGENCY, RUNNING, HIKING ETC. (100%)",Environment Housing and Neighbourhoods,Other Capital Expenditure,C20002
http://opendatacommunities.org/id/london-borough-council/sutton,London Borough of Sutton,06/12/2023,10015042,11.42,AMZNMKTPLACE,"SPLIT - HEAD TORCH RECHARGEABLE, BLUKAR 2000L SUPER BRIGHT LED HEADLAMP HEADLIGHT WITH SENSOR CONTROL, 6 LIGHT MODES, IPX5 WATERPROOF, 30 HRS RUNTIME FOR POWER CUTS, EMERGENCY, RUNNING, HIKING ETC. (100%)",Environment Housing and Neighbourhoods,Other Capital Expenditure,C20002
http://opendatacommunities.org/id/london-borough-council/sutton,London Borough of Sutton,06/12/2023,10015042,11.99,AMZNMKTPLACE,"SPLIT - SUPERFIRE C20 LED TORCH RECHARGEABLE, 3600 LUMENS SUPER BRIGHT FLASHLIGHT, 5 LIGHTING MODES WITH 4800 MAH RECHARGEABLE BATTERY, IP46 WATERPROOF LED TORCH FOR POWER CUTS, CAMPING ETC (100%)",Environment Housing and Neighbourhoods,Other Capital Expenditure,C20002
http://opendatacommunities.org/id/london-borough-council/sutton,London Borough of Sutton,06/12/2023,10015042,94.82,AMZNMKTPLACE,"SPLIT - 40W USB C CHARGER PLUG FOR IPHONE 15 14 13 12 11 PRO MAX SE XS XR 8 PLUS, IPAD, SAMSUNG GALAXY, HUAWEI, TABLET, 4-PORT FAST MULTI UK USBC CHARGING ADAPTOR TYPE C PD POWER WALL ADAPTER (24.34%)",Environment Housing and Neighbourhoods,Other Capital Expenditure,C20002
http://opendatacommunities.org/id/london-borough-council/sutton,London Borough of Sutton,06/12/2023,10015042,146.2,AMZNMKTPLACE,"SPLIT - SUPERFIRE C20 LED TORCH RECHARGEABLE, 3600 LUMENS SUPER BRIGHT FLASHLIGHT, 5 LIGHTING MODES WITH 4800 MAH RECHARGEABLE BATTERY, IP46 WATERPROOF LED TORCH FOR POWER CUTS, CAMPING ETC (45.05%)",Environment Housing and Neighbourhoods,Other Capital Expenditure,C20002
http://opendatacommunities.org/id/london-borough-council/sutton,London Borough of Sutton,06/12/2023,10015042,-8.2,AMZNMKTPLACE,BALANCING ENTRY AMOUNT (-6.3%),Environment Housing and Neighbourhoods,Other Capital Expenditure,C20002
http://opendatacommunities.org/id/london-borough-council/sutton,London Borough of Sutton,12/12/2023,10015042,20,MY.MORRISONS.COM,MORRISONS CPD 181223 149.76 SHOWING 20.00 DEPOSIT,Health and Wellbeing,Catering,A41000
http://opendatacommunities.org/id/london-borough-council/sutton,London Borough of Sutton,18/12/2023,10015042,149.76,WM MORRISONS STORE,MORRISONS CPD 181223 149.76,Health and Wellbeing,Catering,A41000
http://opendatacommunities.org/id/london-borough-council/sutton,London Borough of Sutton,18/12/2023,10015042,88.59,WM MORRISONS STORE,MORRISONS CPD 181223 88.59,Health and Wellbeing,Catering,A41000
http://opendatacommunities.org/id/london-borough-council/sutton,London Borough of Sutton,14/12/2023,10015042,42,ASDA STORES,ASDA FOR CDP DAY 181223  42.00 141223,Health and Wellbeing,Provisions,A41006
http://opendatacommunities.org/id/london-borough-council/sutton,London Borough of Sutton,14/12/2023,10015042,75.93,LIDL UK,LIDL FOR STAFF CPD 181223 75.93 141223,Health and Wellbeing,Provisions,A41006
http://opendatacommunities.org/id/london-borough-council/sutton,London Borough of Sutton,27/11/2023,10015042,40,ENCHANTED FLORIST,"FLOWERS DECEASED LEARNER ""REDACTED - PERSONAL DATA""",Health and Wellbeing,Hospitality,A46020
http://opendatacommunities.org/id/london-borough-council/sutton,London Borough of Sutton,18/12/2023,10015042,100,HASKINS GARDEN CENTRE,LEAVING GIFT INTERIM PRINCIPAL,Health and Wellbeing,Hospitality,A46020
http://opendatacommunities.org/id/london-borough-council/sutton,London Borough of Sutton,30/11/2023,10015042,41.4,WWW.SCREWFIX.COM,EAR DEFENDERS LLDD,Health and Wellbeing,Other Supplies & Services,A44291
http://opendatacommunities.org/id/london-borough-council/sutton,London Borough of Sutton,16/12/2023,10015042,29.99,AMZNMKTPLACE,WIRELESS HEADPHONES,Health and Wellbeing,IT Software Purchase,A45040
http://opendatacommunities.org/id/london-borough-council/sutton,London Borough of Sutton,28/11/2023,10015042,3.29,MTMOMK,IT SOFTWARE FOREIGN EXCHANGE FEE,Health and Wellbeing,IT Software Purchase,A45040
http://opendatacommunities.org/id/london-borough-council/sutton,London Borough of Sutton,27/11/2023,10015042,119.8,MTMOMK,IT SOFTWARE,Health and Wellbeing,IT Software Purchase,A45040
http://opendatacommunities.org/id/london-borough-council/sutton,London Borough of Sutton,04/12/2023,10015042,-71.99,123 REG LTD 013190165,REFUND SSL RENEWAL,Health and Wellbeing,Subscriptions,A47010
http://opendatacommunities.org/id/london-borough-council/sutton,London Borough of Sutton,02/12/2023,10015042,59.99,123 REG LTD 013190165,SSL RENEWAL,Health and Wellbeing,Subscriptions,A47010
http://opendatacommunities.org/id/london-borough-council/sutton,London Borough of Sutton,04/12/2023,10015042,239.97,123-REG,SSL CERT RENEWAL,Health and Wellbeing,Subscriptions,A47010
http://opendatacommunities.org/id/london-borough-council/sutton,London Borough of Sutton,01/12/2023,10015042,69.3,GSUITE_SUTTONCOLLEGE.A,GOOGLE CLOUD EMEA LIMITED 4862452026,Health and Wellbeing,Subscriptions,A47010
http://opendatacommunities.org/id/london-borough-council/sutton,London Borough of Sutton,08/12/2023,10015042,89.17,INSTANTPRINT.CO.UK,INSTANTPRINT 071223 SAFEGUDARING A1S 107.00,Health and Wellbeing,Publicity,A44266
http://opendatacommunities.org/id/london-borough-council/sutton,London Borough of Sutton,29/11/2023,10015042,92,INSTANTPRINT.CO.UK,INSTANTPRINT 291123 110.40,Health and Wellbeing,Publicity,A44266
http://opendatacommunities.org/id/london-borough-council/sutton,London Borough of Sutton,07/12/2023,10015042,47.99,ADOBE SYSTEMS SOFTWARE,ADOBE 071223 47.99,Health and Wellbeing,Publicity,A44266
http://opendatacommunities.org/id/london-borough-council/sutton,London Borough of Sutton,30/11/2023,10015042,492.11,FACEBK  JW8HMVK6A2,FACEBOOK SPRING 24 AD  301123 492.11,Health and Wellbeing,Publicity,A44266
http://opendatacommunities.org/id/london-borough-council/sutton,London Borough of Sutton,30/11/2023,10015042,110.04,MAILCHIMP,MAILCHIMP 301123 110.04,Health and Wellbeing,Publicity,A44266
http://opendatacommunities.org/id/london-borough-council/sutton,London Borough of Sutton,14/12/2023,10015042,53.99,AMZNBUSINESS CS48X44R5,PROTECTIVE FOOTWEAR FOR SITE SUPERVISOR,Health and Wellbeing,Health & Safety Equipment,A40080
http://opendatacommunities.org/id/london-borough-council/sutton,London Borough of Sutton,08/12/2023,10015042,337.09,THOMAS RIDLEY FOODSERV,SUPPLIES FOR VENDING MACHINES,Health and Wellbeing,Vending Machines Supplies,A44041
http://opendatacommunities.org/id/london-borough-council/sutton,London Borough of Sutton,12/12/2023,10015042,23.93,AMZNMKTPLACE,COTTON FABRIC,Health and Wellbeing,Equipment And Materials Purchase,A40000
http://opendatacommunities.org/id/london-borough-council/sutton,London Borough of Sutton,12/12/2023,10015042,8.48,AMZNMKTPLACE,OVERLOCKING THREAD,Health and Wellbeing,Equipment And Materials Purchase,A40000
http://opendatacommunities.org/id/london-borough-council/sutton,London Borough of Sutton,12/12/2023,10015042,15.13,AMZNMKTPLACE,STEAM IRON,Health and Wellbeing,Equipment And Materials Purchase,A40000
http://opendatacommunities.org/id/london-borough-council/sutton,London Borough of Sutton,14/12/2023,10015042,23.58,AMZNBUSINESS 4L4WT6ME5,CACHE LEVEL 2 BOOK FOR COURSE,Health and Wellbeing,Equipment And Materials Purchase,A40000
http://opendatacommunities.org/id/london-borough-council/sutton,London Borough of Sutton,06/12/2023,10015042,215.28,IDVERDE LIMITED (TUDO,SUTTON ALLOTMENT HIRE GARDENING 1 YEAR,Health and Wellbeing,Hire of Property,A22030
http://opendatacommunities.org/id/london-borough-council/sutton,London Borough of Sutton,19/12/2023,10015042,8.36,AMZNMKTPLACE,SPLIT - FRIENDS ASK FIRST!: A BOOK ABOUT SHARING (DANIEL TIGER'S NEIGHBORHOOD) (74.91%),People's Services,LAC - Education,A44280
http://opendatacommunities.org/id/london-borough-council/sutton,London Borough of Sutton,06/12/2023,10015042,13.28,AMZNMKTPLACE,SPLIT - GRINDING IT OUT: THE MAKING OF MCDONALD'S (100%),People's Services,LAC - Education,A44280
http://opendatacommunities.org/id/london-borough-council/sutton,London Borough of Sutton,04/12/2023,10015042,295,WWW.THEBEAUTYACADEMY.O,LASH KITS FOR CLA X 3 FOR COURSE FOR CLA,People's Services,LAC - Education,A44280
http://opendatacommunities.org/id/london-borough-council/sutton,London Borough of Sutton,19/12/2023,10015042,10.99,AMZNMKTPLACE,SPLIT - LISTEN AND LEARN: LEARNING TO GET ALONG (24.47%),People's Services,LAC - Education,A44280
http://opendatacommunities.org/id/london-borough-council/sutton,London Borough of Sutton,19/12/2023,10015042,5.61,AMZNMKTPLACE,SPLIT - TIME TO SHARE: SHOW YOUR CHILD WHAT A LOVELY THING SHARING CAN BE (12.49%),People's Services,LAC - Education,A44280
http://opendatacommunities.org/id/london-borough-council/sutton,London Borough of Sutton,19/12/2023,10015042,12.99,AMZNMKTPLACE,SPLIT - SHARE AND TAKE TURNS (LEARNING TO GET ALONG) (28.92%),People's Services,LAC - Education,A44280
http://opendatacommunities.org/id/london-borough-council/sutton,London Borough of Sutton,06/12/2023,10015042,30,AMZNMKTPLACE,SPLIT - AMAZON.CO.UK EGIFT CARD -AMAZON FOR ALL OCCASIONS-EMAIL (100%),People's Services,LAC - Education,A44280
http://opendatacommunities.org/id/london-borough-council/sutton,London Borough of Sutton,27/11/2023,10015042,23.95,AMZNBUSINESS HW9EB6T54,SPLIT - ENGLISH-VIETNAMESE & VIETNAMESE-ENGLISH WORD-TO-WORD DICTIONARY (100%),People's Services,LAC - Education,A44280
http://opendatacommunities.org/id/london-borough-council/sutton,London Borough of Sutton,19/12/2023,10015042,7.98,AMZNMKTPLACE,SPLIT - THE SNOWMAN AND THE SNOWDOG (17.76%),People's Services,LAC - Education,A44280
http://opendatacommunities.org/id/london-borough-council/sutton,London Borough of Sutton,06/12/2023,10015042,19.43,AMZN MKTP UK 032US3WF5,SPLIT - PROFIT FIRST: TRANSFORM YOUR BUSINESS FROM A CASH-EATING MONSTER TO A MONEY-MAKING MACHINE (59.64%),People's Services,LAC - Education,A44280
http://opendatacommunities.org/id/london-borough-council/sutton,London Borough of Sutton,06/12/2023,10015042,13.15,AMZN MKTP UK 032US3WF5,SPLIT - RICH DAD POOR DAD: WHAT THE RICH TEACH THEIR KIDS ABOUT MONEY THAT THE POOR AND MIDDLE CLASS DO NOT! (40.36%),People's Services,LAC - Education,A44280
http://opendatacommunities.org/id/london-borough-council/sutton,London Borough of Sutton,19/12/2023,10015042,7.35,AMZNMKTPLACE,SPLIT - KINDNESS: A LIFT-THE-FLAP BOARD BOOK ABOUT BEING KIND (16.36%),People's Services,LAC - Education,A44280
http://opendatacommunities.org/id/london-borough-council/sutton,London Borough of Sutton,12/12/2023,10015042,50,AMAZON.CO.UK XB0TE05X5,SPLIT - AMAZON.CO.UK GIFT CARD FOR ANY AMOUNT IN A RED REVEAL (100%),People's Services,LAC - Education,A44280
http://opendatacommunities.org/id/london-borough-council/sutton,London Borough of Sutton,07/12/2023,10015042,21.95,AMZNBUSINESS VD7NP5C05,SPLIT - ENGLISH-TURKISH & TURKISH-ENGLISH ONE-TO-ONE DICTIONARY (EXAM-SUITABLE) (100%),People's Services,LAC - Education,A44280
http://opendatacommunities.org/id/london-borough-council/sutton,London Borough of Sutton,19/12/2023,10015042,2.8,AMZNMKTPLACE,BALANCING ENTRY AMOUNT (25.09%),People's Services,LAC - Education,A44280